[Event "RUS-ch Men Blitz 2019"]
[Site "Sochi"]
[Date "2019.10.17"]
[Round "8.12"]
[White "Glek, Igor"]
[Black "Bocharov, Dmitry"]
[Result "0-1"]
[ECO "B06"]
[WhiteElo "2467"]
[BlackElo "2519"]
[Annotator "ChessBase"]
[PlyCount "41"]
[EventDate "2019.10.17"]
[EventType "swiss"]
[EventCountry "RUS"]
[SourceTitle "playchess.com"]
[Source "ChessBase"]
[SourceQuality "1"]
[TimeControl "180+2"]

1. e4 {[%emt 0:00:00]} g6 {[%emt 0:00:00]} 2. d4 {[%emt 0:00:01]} Bg7 {[%emt 0:00:01]} 3. Nc3 {[%emt 0:00:02]} d6 {[%emt 0:00:02]} 4. f4 {[%emt 0:00:01]} a6 {[%emt 0:00:01]} 5. Nf3 {[%emt 0:00:11]} b5 {[%emt 0:00:01]} 6. a4 {[%emt 0:00:15]} b4 {[%emt 0:00:05]} 7. Nd5 {[%emt 0:00:01]} Bb7 {[%emt 0:00:06]} 8. Bd3 {[%emt 0:00:13]} a5 {[%emt 0:00:01]} 9. c3 {[%emt 0:00:21]} e6 {[%emt 0:00:21]} 10. Ne3 {[%emt 0:00:01]} bxc3 {[%emt 0:00:02]} 11. bxc3 {[%emt 0:00:01]} Nf6 {[%emt 0:00:01]} 12. e5 {[%emt 0:01:13]} Nd5 {[%emt 0:00:03]} 13. Nxd5 {[%emt 0:00:06]} Bxd5 {[%emt 0:00:01]} 14. O-O {[%emt 0:00:08]} O-O {[%emt 0:00:02]} 15. Be3 {[%emt 0:00:12]} Nd7 {[%emt 0:00:15]} 16. Ng5 {[%emt 0:00:15]} c5 {[%emt 0:00:09]} 17. Ne4 {[%emt 0:00:05]} cxd4 {[%emt 0:00:14]} 18. cxd4 {[%emt 0:00:04]} dxe5 {[%emt 0:00:07]} 19. dxe5 {[%emt 0:00:10]} Rb8 {[%emt 0:00:07]} 20. Nc5 {[%emt 0:00:06]} Qb6 {[%emt 0:00:20]} 21. Qc1 {[%emt 0:00:16]} 0-1

[Event "RUS-ch Men Blitz 2019"]
[Site "Sochi"]
[Date "2019.10.17"]
[Round "8.13"]
[White "Pridorozhni, Aleksei"]
[Black "Korchmar, Vasiliy"]
[Result "1-0"]
[ECO "B23"]
[WhiteElo "2599"]
[BlackElo "2432"]
[Annotator "ChessBase"]
[PlyCount "49"]
[EventDate "2019.10.17"]
[EventType "swiss"]
[EventCountry "RUS"]
[SourceTitle "playchess.com"]
[Source "ChessBase"]
[SourceQuality "1"]
[TimeControl "180+2"]

1. e4 {[%emt 0:00:00]} c5 {[%emt 0:00:00]} 2. Nc3 {[%emt 0:00:01]} d6 {[%emt 0:00:01]} 3. f4 {[%emt 0:00:03]} g6 {[%emt 0:00:09]} 4. d4 {[%emt 0:00:01]} Bg7 {[%emt 0:00:10]} 5. dxc5 {[%emt 0:00:02]} Qa5 {[%emt 0:00:22]} 6. cxd6 {[%emt 0:00:03]} exd6 {[%emt 0:00:56]} 7. Bd3 {[%emt 0:00:06]} Nf6 {[%emt 0:00:11]} 8. Nf3 {[%emt 0:00:12]} O-O {[%emt 0:00:05]} 9. O-O {[%emt 0:00:03]} Nc6 {[%emt 0:00:01]} 10. Kh1 {[%emt 0:00:06]} Re8 {[%emt 0:00:02]} 11. Bd2 {[%emt 0:00:20]} Qb6 {[%emt 0:00:02]} 12. Rb1 {[%emt 0:00:01]} Bg4 {[%emt 0:00:01]} 13. h3 {[%emt 0:00:02]} Bxf3 {[%emt 0:00:01]} 14. Qxf3 {[%emt 0:00:01]} Nb4 {[%emt 0:00:10]} 15. Be3 {[%emt 0:00:08]} Qa5 {[%emt 0:00:09]} 16. a3 {[%emt 0:00:14]} Nxd3 {[%emt 0:00:01]} 17. cxd3 {[%emt 0:00:01]} Rac8 {[%emt 0:00:02]} 18. Qf2 {[%emt 0:00:03]} b6 {[%emt 0:00:03]} 19. Bd4 {[%emt 0:00:03]} Qa6 {[%emt 0:00:01]} 20. Rbd1 {[%emt 0:00:03]} Qb7 {[%emt 0:00:11]} 21. f5 {[%emt 0:00:07]} Rf8 {[%emt 0:00:35]} 22. Bxf6 {[%emt 0:00:03]} Bxf6 {[%emt 0:00:01]} 23. Nd5 {[%emt 0:00:01]} Bg5 {[%emt 0:00:09]} 24. Qg3 {[%emt 0:00:06]} Bh6 {[%emt 0:00:03]} 25. Qh4 {[%emt 0:00:06]} 1-0

[Event "RUS-ch Men Blitz 2019"]
[Site "Sochi"]
[Date "2019.10.17"]
[Round "8.18"]
[White "Savitskiy, Sergey"]
[Black "Vastrukhin, Oleg"]
[Result "1-0"]
[ECO "A04"]
[WhiteElo "2407"]
[BlackElo "2428"]
[Annotator "RC"]
[PlyCount "73"]
[EventDate "2019.10.17"]
[EventType "swiss"]
[EventCountry "RUS"]
[SourceTitle "playchess.com"]
[Source "ChessBase"]
[SourceQuality "1"]
[TimeControl "180+2"]

1. Nf3 {[%emt 0:00:00]} g6 {[%emt 0:00:00]} 2. g3 {[%emt 0:00:00]} Bg7 {[%emt 0:00:00]} 3. Bg2 {[%emt 0:00:00]} c5 {[%emt 0:00:00]} 4. O-O {[%emt 0:00:01]} Nc6 {[%emt 0:00:00]} 5. d3 {[%emt 0:00:01]} e6 {[%emt 0:00:01]} 6. Nc3 {[%emt 0:00:09]} Nge7 {[%emt 0:00:02]} 7. Rb1 {[%emt 0:00:07]} O-O {[%emt 0:00:03]} 8. a3 {[%emt 0:00:01]} b6 {[%emt 0:00:04]} 9. Bd2 {[%emt 0:00:03]} Bb7 {[%emt 0:00:08]} 10. b4 {[%emt 0:00:01]} d6 {[%emt 0:00:02]} 11. bxc5 {[%emt 0:00:13]} dxc5 {[%emt 0:00:01]} 12. Ne4 {[%emt 0:00:01]} h6 {[%emt 0:00:07]} 13. Nxc5 {[%emt 0:00:02]} Bc8 {[%emt 0:00:20]} 14. Nb3 {[%emt 0:00:02]} g5 {[%emt 0:00:09]} 15. c3 {[%emt 0:00:10]} Bb7 {[%emt 0:00:04]} 16. h4 {[%emt 0:00:13]} g4 {[%emt 0:00:03]} 17. Nfd4 {[%emt 0:00:01]} Qd7 {[%emt 0:00:21]} 18. Nxc6 {[%emt 0:00:22]} Bxc6 {[%emt 0:00:01]} 19. Bxc6 {[%emt 0:00:08]} Qxc6 {[%emt 0:00:03]} 20. c4 {[%emt 0:00:10]} f5 {[%emt 0:00:09]} 21. Qc1 {[%emt 0:00:02]} Kh7 {[%emt 0:00:06]} 22. Bc3 {[%emt 0:00:20]} e5 {[%emt 0:00:04]} 23. Qb2 {[%emt 0:00:21]} Qe6 {[%emt 0:00:21]} 24. a4 {[%emt 0:00:09]} f4 {[%emt 0:00:15]} 25. Nd2 {[%emt 0:00:01]} Nf5 {[%emt 0:00:05]} 26. Ne4 {[%emt 0:00:01]} Nd6 {[%emt 0:00:08]} 27. Nxd6 {[%emt 0:00:05]} Qxd6 {[%emt 0:00:01]} 28. Bb4 {[%emt 0:00:02]} Qe6 {[%emt 0:00:10]} 29. Bxf8 {[%emt 0:00:01]} Rxf8 {[%emt 0:00:00]} 30. Qc2 {[%emt 0:00:04]} Rf7 {[%emt 0:00:13]} 31. e4 {[%emt 0:00:12]} Bf8 {[%emt 0:00:04]} 32. d4 {[%emt 0:00:14]} exd4 {[%emt 0:00:05]} 33. e5+ {[%emt 0:00:01]} Kg7 {[%emt 0:00:06]} 34. Qe4 {[%emt 0:00:00]} d3 {[%emt 0:00:08]} 35. Qd5 {[%emt 0:00:20]} Qg6 {[%emt 0:00:00]} 36. e6 {[%emt 0:00:02]} Rc7 {[%emt 0:00:15]} 37. Qe5+ {[%emt 0:00:03]} 1-0

[Event "RUS-ch Men Blitz 2019"]
[Site "Sochi"]
[Date "2019.10.17"]
[Round "8.19"]
[White "Shubin, Kirill"]
[Black "Sadovsky, Artem"]
[Result "0-1"]
[ECO "B06"]
[WhiteElo "2416"]
[BlackElo "2411"]
[Annotator "NA"]
[PlyCount "120"]
[EventDate "2019.10.17"]
[EventType "swiss"]
[EventCountry "RUS"]
[SourceTitle "playchess.com"]
[Source "ChessBase"]
[SourceQuality "1"]
[TimeControl "180+2"]

1. e4 {[%emt 0:00:00]} g6 {[%emt 0:00:00]} 2. d4 {[%emt 0:00:00]} Bg7 {[%emt 0:00:00]} 3. Nf3 d6 4. Nc3 {[%emt 0:00:02]} e5 {[%emt 0:00:02]} 5. dxe5 {[%emt 0:00:02]} dxe5 {[%emt 0:00:01]} 6. Qxd8+ {[%emt 0:00:02]} Kxd8 {[%emt 0:00:01]} 7. Bc4 {[%emt 0:00:01]} f6 {[%emt 0:00:01]} 8. Be3 {[%emt 0:00:05]} Nd7 {[%emt 0:00:01]} 9. O-O-O {[%emt 0:00:03]} Bh6 {[%emt 0:00:01]} 10. Bxh6 {[%emt 0:00:17]} Nxh6 {[%emt 0:00:01]} 11. Rd2 {[%emt 0:00:02]} c6 {[%emt 0:00:04]} 12. Rhd1 {[%emt 0:00:02]} Kc7 {[%emt 0:00:06]} 13. a4 {[%emt 0:00:15]} a5 {[%emt 0:00:09]} 14. Rd6 {[%emt 0:00:20]} Nb6 {[%emt 0:00:32]} 15. Be6 {[%emt 0:00:09]} Rf8 {[%emt 0:00:10]} 16. Bxc8 {[%emt 0:00:11]} Raxc8 {[%emt 0:00:01]} 17. b3 {[%emt 0:00:08]} Nd5 {[%emt 0:00:52]} 18. Nb5+ {[%emt 0:00:01]} cxb5 {[%emt 0:00:25]} 19. R1xd5 {[%emt 0:00:05]} bxa4 {[%emt 0:00:08]} 20. Rd7+ {[%emt 0:00:07]} Kb8 {[%emt 0:00:05]} 21. Rxh7 {[%emt 0:00:08]} axb3 {[%emt 0:00:11]} 22. Rdd7 {[%emt 0:00:10]} Rxc2+ {[%emt 0:00:04]} 23. Kb1 {[%emt 0:00:02]} Nf7 {[%emt 0:00:07]} 24. Rhxf7 {[%emt 0:00:35]} Rxf7 {[%emt 0:00:01]} 25. Rxf7 {[%emt 0:00:02]} a4 {[%emt 0:00:00]} 26. Rd7 {[%emt 0:00:06]} a3 {[%emt 0:00:07]} 27. Rd1 {[%emt 0:00:05]} Rxf2 {[%emt 0:00:03]} 28. Nd2 {[%emt 0:00:12]} Rxg2 {[%emt 0:00:00]} 29. Ka1 {[%emt 0:00:02]} b2+ {[%emt 0:00:06]} 30. Ka2 {[%emt 0:00:02]} Rxh2 {[%emt 0:00:03]} 31. Nc4 {[%emt 0:00:05]} Re2 {[%emt 0:00:11]} 32. Nxa3 {[%emt 0:00:13]} Rxe4 {[%emt 0:00:01]} 33. Nb5 {[%emt 0:00:04]} b1=Q+ {[%emt 0:00:13]} 34. Rxb1 {[%emt 0:00:01]} Re2+ {[%emt 0:00:03]} 35. Kb3 {[%emt 0:00:02]} Rf2 {[%emt 0:00:13]} 36. Kc4 {[%emt 0:00:07]} e4 {[%emt 0:00:03]} 37. Kc5 {[%emt 0:00:06]} Rc2+ {[%emt 0:00:02]} 38. Kd4 {[%emt 0:00:05]} f5 {[%emt 0:00:00]} 39. Rg1 {[%emt 0:00:05]} Rc6 {[%emt 0:00:01]} 40. Nc3 {[%emt 0:00:03]} Re6 {[%emt 0:00:02]} 41. Nd5 {[%emt 0:00:01]} Rc6 {[%emt 0:00:05]} 42. Nf4 {[%emt 0:00:06]} b5 {[%emt 0:00:03]} 43. Nxg6 {[%emt 0:00:03]} Rc4+ {[%emt 0:00:02]} 44. Kd5 {[%emt 0:00:04]} e3 {[%emt 0:00:01]} 45. Ne5 {[%emt 0:00:01]} Re4 {[%emt 0:00:01]} 46. Nd3 {[%emt 0:00:03]} e2 {[%emt 0:00:03]} 47. Re1 b4 48. Rb1 {[%emt 0:00:05]} Kc7 {[%emt 0:00:02]} 49. Re1 {[%emt 0:00:03]} b3 {[%emt 0:00:00]} 50. Rb1 {[%emt 0:00:02]} Re3 {[%emt 0:00:04]} 51. Kd4 {[%emt 0:00:01]} f4 {[%emt 0:00:02]} 52. Nxf4 {[%emt 0:00:03]} e1=Q {[%emt 0:00:02]} 53. Rxe1 {[%emt 0:00:02]} Rxe1 {[%emt 0:00:02]} 54. Kc3 {[%emt 0:00:01]} Re3+ {[%emt 0:00:02]} 55. Kb2 {[%emt 0:00:00]} Kc6 {[%emt 0:00:02]} 56. Ka3 {[%emt 0:00:03]} Kc5 {[%emt 0:00:02]} 57. Kb2 {[%emt 0:00:01]} Kc4 {[%emt 0:00:01]} 58. Kb1 {[%emt 0:00:02]} Rf3 {[%emt 0:00:01]} 59. Ne2 {[%emt 0:00:01]} Rf2 {[%emt 0:00:02]} 60. Nc1 {[%emt 0:00:01]} Kc3 0-1

[Event "RUS-ch Men Blitz 2019"]
[Site "Sochi"]
[Date "2019.10.17"]
[Round "8.21"]
[White "Savchenko, Boris"]
[Black "Smagin, Sergey"]
[Result "1-0"]
[ECO "C37"]
[WhiteElo "2581"]
[BlackElo "2551"]
[Annotator "RC"]
[PlyCount "39"]
[EventDate "2019.10.17"]
[EventType "swiss"]
[EventCountry "RUS"]
[SourceTitle "playchess.com"]
[Source "ChessBase"]
[SourceQuality "1"]
[TimeControl "180+2"]

1. e4 {[%emt 0:00:01]} e5 {[%emt 0:00:00]} 2. f4 {[%emt 0:00:02]} exf4 {[%emt 0:00:00]} 3. Nf3 {[%emt 0:00:02]} g5 {[%emt 0:00:00]} 4. Nc3 {[%emt 0:00:03]} Bg7 {[%emt 0:00:01]} 5. d4 {[%emt 0:00:03]} Nc6 {[%emt 0:00:03]} 6. Bc4 {[%emt 0:00:01]} h6 {[%emt 0:00:02]} 7. g3 {[%emt 0:00:53]} d6 {[%emt 0:00:45]} 8. gxf4 {[%emt 0:00:02]} g4 {[%emt 0:00:01]} 9. Rg1 {[%emt 0:00:04]} Nge7 {[%emt 0:00:45]} 10. f5 {[%emt 0:00:16]} h5 {[%emt 0:00:33]} 11. Be3 {[%emt 0:00:06]} Na5 {[%emt 0:00:12]} 12. Bd3 {[%emt 0:00:38]} d5 {[%emt 0:00:01]} 13. Qd2 {[%emt 0:00:01]} dxe4 {[%emt 0:00:11]} 14. Nxe4 {[%emt 0:00:01]} Nxf5 {[%emt 0:00:00]} 15. Bg5 {[%emt 0:00:05]} Qd5 {[%emt 0:00:10]} 16. Bf6 {[%emt 0:00:12]} Nc4 {[%emt 0:00:23]} 17. Qf4 {[%emt 0:00:43]} O-O {[%emt 0:00:23]} 18. Bxg7 {[%emt 0:00:03]} Kxg7 {[%emt 0:00:06]} 19. Qg5+ {[%emt 0:00:02]} Kh8 {[%emt 0:00:02]} 20. Qxh5+ {[%emt 0:00:02]} 1-0

[Event "RUS-ch Men Blitz 2019"]
[Site "Sochi"]
[Date "2019.10.17"]
[Round "8.22"]
[White "Pogromsky, Mikhail"]
[Black "Gutenev, Alexander"]
[Result "0-1"]
[ECO "A05"]
[WhiteElo "2411"]
[BlackElo "2469"]
[Annotator "ChessBase"]
[PlyCount "98"]
[EventDate "2019.10.17"]
[EventType "swiss"]
[EventCountry "RUS"]
[SourceTitle "playchess.com"]
[Source "ChessBase"]
[SourceQuality "1"]
[TimeControl "180+2"]

1. Nf3 {[%emt 0:00:00]} Nf6 {[%emt 0:00:00]} 2. b3 {[%emt 0:00:00]} b6 {[%emt 0:00:00]} 3. g3 {[%emt 0:00:01]} g6 {[%emt 0:00:00]} 4. Bb2 {[%emt 0:00:01]} Bg7 {[%emt 0:00:01]} 5. Bg2 {[%emt 0:00:01]} Bb7 {[%emt 0:00:01]} 6. c4 {[%emt 0:00:01]} O-O {[%emt 0:00:01]} 7. O-O {[%emt 0:00:02]} e6 {[%emt 0:00:02]} 8. d4 {[%emt 0:00:06]} d5 {[%emt 0:00:20]} 9. Ne5 {[%emt 0:00:04]} Na6 {[%emt 0:00:02]} 10. Nc3 {[%emt 0:00:04]} Qe7 {[%emt 0:00:05]} 11. Rc1 {[%emt 0:00:07]} Rfd8 {[%emt 0:00:13]} 12. cxd5 {[%emt 0:00:08]} exd5 {[%emt 0:00:01]} 13. e3 {[%emt 0:00:17]} c6 {[%emt 0:00:06]} 14. Nb1 {[%emt 0:00:16]} Rac8 {[%emt 0:00:04]} 15. Bh3 {[%emt 0:00:04]} Rc7 {[%emt 0:00:03]} 16. Ba3 {[%emt 0:00:04]} c5 {[%emt 0:00:08]} 17. Nc3 {[%emt 0:00:03]} Qe8 {[%emt 0:00:15]} 18. Qe2 {[%emt 0:00:09]} cxd4 {[%emt 0:00:18]} 19. exd4 {[%emt 0:00:03]} Ne4 {[%emt 0:00:01]} 20. Nb5 {[%emt 0:00:28]} Rxc1 {[%emt 0:00:01]} 21. Rxc1 {[%emt 0:00:01]} Bxe5 {[%emt 0:00:32]} 22. dxe5 {[%emt 0:00:01]} Nac5 {[%emt 0:00:23]} 23. Nd4 {[%emt 0:00:36]} Qxe5 {[%emt 0:00:06]} 24. Bb2 {[%emt 0:00:02]} Qg5 {[%emt 0:00:16]} 25. Re1 {[%emt 0:00:16]} Ba6 {[%emt 0:00:02]} 26. Qe3 {[%emt 0:00:09]} Nd3 {[%emt 0:00:07]} 27. Re2 {[%emt 0:00:08]} Ndxf2 {[%emt 0:00:24]} 28. Bf1 {[%emt 0:00:26]} Bxe2 {[%emt 0:00:04]} 29. Qxe2 {[%emt 0:00:01]} Ng4 {[%emt 0:00:03]} 30. Nc2 {[%emt 0:00:04]} Qf5 {[%emt 0:00:03]} 31. Bd4 {[%emt 0:00:02]} Ng5 {[%emt 0:00:01]} 32. Bg2 {[%emt 0:00:03]} f6 {[%emt 0:00:03]} 33. Nb4 {[%emt 0:00:03]} Ne5 {[%emt 0:00:02]} 34. Bxd5+ {[%emt 0:00:03]} Rxd5 {[%emt 0:00:01]} 35. Nxd5 {[%emt 0:00:02]} Nef3+ {[%emt 0:00:02]} 36. Kg2 {[%emt 0:00:02]} Qxd5 {[%emt 0:00:03]} 37. Qe8+ {[%emt 0:00:03]} Kg7 {[%emt 0:00:03]} 38. Qe7+ {[%emt 0:00:03]} Kg8 {[%emt 0:00:06]} 39. Qe8+ {[%emt 0:00:00]} Kg7 {[%emt 0:00:02]} 40. Qe7+ {[%emt 0:00:01]} Nf7 {[%emt 0:00:06]} 41. Bxf6+ {[%emt 0:00:09]} Kh6 {[%emt 0:00:02]} 42. g4 {[%emt 0:00:07]} N3g5+ {[%emt 0:00:02]} 43. Kf2 {[%emt 0:00:01]} Ne4+ {[%emt 0:00:02]} 44. Kf1 {[%emt 0:00:03]} Qd1+ {[%emt 0:00:02]} 45. Kg2 {[%emt 0:00:01]} Qe2+ {[%emt 0:00:01]} 46. Kh3 {[%emt 0:00:02]} Qf3+ {[%emt 0:00:02]} 47. Kh4 {[%emt 0:00:01]} Qf2+ {[%emt 0:00:03]} 48. Kh3 {[%emt 0:00:00]} Neg5+ {[%emt 0:00:02]} 49. Bxg5+ {[%emt 0:00:02]} Nxg5+ {[%emt 0:00:00]} 0-1

[Event "RUS-ch Men Blitz 2019"]
[Site "Sochi"]
[Date "2019.10.17"]
[Round "9.1"]
[White "Shimanov, Aleksandr"]
[Black "Drygalov, Andrey"]
[Result "1/2-1/2"]
[ECO "B23"]
[WhiteElo "2587"]
[BlackElo "2484"]
[Annotator "ChessBase"]
[PlyCount "112"]
[EventDate "2019.10.17"]
[EventType "swiss"]
[EventCountry "RUS"]
[SourceTitle "playchess.com"]
[Source "ChessBase"]
[SourceQuality "1"]
[TimeControl "180+2"]

1. e4 {[%emt 0:00:00]} c5 {[%emt 0:00:00]} 2. Nc3 {[%emt 0:00:01]} d6 {[%emt 0:00:00]} 3. Bb5+ {[%emt 0:00:02]} Bd7 {[%emt 0:00:03]} 4. Bxd7+ {[%emt 0:00:02]} Nxd7 {[%emt 0:00:06]} 5. f4 {[%emt 0:00:01]} Ngf6 {[%emt 0:00:05]} 6. Nf3 {[%emt 0:00:02]} g6 {[%emt 0:00:03]} 7. Qe2 {[%emt 0:00:04]} Bg7 {[%emt 0:00:03]} 8. e5 {[%emt 0:00:09]} dxe5 {[%emt 0:01:26]} 9. fxe5 {[%emt 0:00:01]} Ng4 {[%emt 0:00:17]} 10. e6 {[%emt 0:00:01]} Nde5 {[%emt 0:00:02]} 11. h3 {[%emt 0:00:41]} Nxf3+ {[%emt 0:00:02]} 12. Qxf3 {[%emt 0:00:01]} Ne5 {[%emt 0:00:01]} 13. exf7+ {[%emt 0:00:01]} Nxf7 {[%emt 0:00:01]} 14. Qxb7 {[%emt 0:00:02]} O-O {[%emt 0:00:06]} 15. d3 {[%emt 0:00:28]} Bd4 {[%emt 0:00:10]} 16. Qe4 {[%emt 0:00:28]} Rb8 {[%emt 0:00:12]} 17. Nd1 {[%emt 0:00:10]} Qd6 {[%emt 0:00:13]} 18. Bf4 {[%emt 0:00:17]} Ne5 {[%emt 0:00:31]} 19. Rf1 {[%emt 0:00:30]} g5 {[%emt 0:00:01]} 20. Bxe5 {[%emt 0:00:06]} Bxe5 {[%emt 0:00:05]} 21. Rxf8+ {[%emt 0:00:22]} Rxf8 {[%emt 0:00:01]} 22. c3 {[%emt 0:00:02]} Bg3+ {[%emt 0:00:08]} 23. Kd2 {[%emt 0:00:01]} Rf1 {[%emt 0:00:03]} 24. Kc2 {[%emt 0:00:05]} Kg7 {[%emt 0:00:02]} 25. Rc1 {[%emt 0:00:05]} e6 {[%emt 0:00:03]} 26. Ne3 {[%emt 0:00:03]} Rxc1+ {[%emt 0:00:01]} 27. Kxc1 {[%emt 0:00:01]} Bf4 {[%emt 0:00:01]} 28. Kc2 {[%emt 0:00:00]} h5 {[%emt 0:00:02]} 29. Nc4 {[%emt 0:00:02]} Qc7 {[%emt 0:00:02]} 30. Qxe6 {[%emt 0:00:01]} Qb7 {[%emt 0:00:02]} 31. Qe4 {[%emt 0:00:02]} Qd7 {[%emt 0:00:01]} 32. b3 {[%emt 0:00:06]} h4 {[%emt 0:00:02]} 33. Nd2 {[%emt 0:00:03]} Bxd2 {[%emt 0:00:05]} 34. Kxd2 {[%emt 0:00:00]} Qd6 {[%emt 0:00:01]} 35. Qf5 {[%emt 0:00:04]} Qg3 {[%emt 0:00:01]} 36. Qf3 {[%emt 0:00:02]} Qe5 {[%emt 0:00:01]} 37. Qe3 {[%emt 0:00:00]} Qf5 {[%emt 0:00:01]} 38. d4 {[%emt 0:00:02]} cxd4 {[%emt 0:00:02]} 39. Qxd4+ {[%emt 0:00:00]} Kh6 {[%emt 0:00:03]} 40. Qxa7 {[%emt 0:00:04]} Qd5+ {[%emt 0:00:00]} 41. Kc1 {[%emt 0:00:05]} Qxg2 {[%emt 0:00:01]} 42. Qe3 {[%emt 0:00:02]} Kg6 {[%emt 0:00:06]} 43. Qe6+ {[%emt 0:00:03]} Kg7 {[%emt 0:00:01]} 44. Qe7+ {[%emt 0:00:01]} Kg6 45. Qe6+ Kg7 {[%emt 0:00:00]} 46. b4 {[%emt 0:00:05]} g4 {[%emt 0:00:01]} 47. Qe7+ {[%emt 0:00:01]} Kg6 {[%emt 0:00:01]} 48. Qe6+ {[%emt 0:00:00]} Kg7 {[%emt 0:00:00]} 49. Qe5+ {[%emt 0:00:01]} Kg6 {[%emt 0:00:03]} 50. Qe6+ {[%emt 0:00:01]} Kg7 {[%emt 0:00:00]} 51. Qe5+ {[%emt 0:00:06]} Kg6 {[%emt 0:00:01]} 52. Qe6+ {[%emt 0:00:02]} Kg7 {[%emt 0:00:00]} 53. Qe7+ {[%emt 0:00:01]} Kg6 {[%emt 0:00:02]} 54. Qe8+ {[%emt 0:00:01]} Kg7 {[%emt 0:00:01]} 55. Qd7+ {[%emt 0:00:02]} Kg6 {[%emt 0:00:02]} 56. Qe6+ {[%emt 0:00:01]} Kg7 {[%emt 0:00:01]} 1/2-1/2

[Event "RUS-ch Men Blitz 2019"]
[Site "Sochi"]
[Date "2019.10.17"]
[Round "9.4"]
[White "Khegay, Dmitriy"]
[Black "Lysyj, Igor"]
[Result "0-1"]
[ECO "C54"]
[WhiteElo "2509"]
[BlackElo "2596"]
[Annotator "ChessBase"]
[PlyCount "92"]
[EventDate "2019.10.17"]
[EventType "swiss"]
[EventCountry "RUS"]
[SourceTitle "playchess.com"]
[Source "ChessBase"]
[SourceQuality "1"]
[TimeControl "180+2"]

1. e4 {[%emt 0:00:00]} e5 {[%emt 0:00:00]} 2. Nf3 {[%emt 0:00:01]} Nc6 {[%emt 0:00:00]} 3. Bc4 {[%emt 0:00:01]} Bc5 {[%emt 0:00:01]} 4. c3 {[%emt 0:00:00]} Nf6 {[%emt 0:00:01]} 5. d3 {[%emt 0:00:01]} a6 {[%emt 0:00:10]} 6. Bb3 {[%emt 0:00:01]} d6 {[%emt 0:00:02]} 7. Nbd2 {[%emt 0:00:02]} O-O {[%emt 0:00:04]} 8. Nf1 {[%emt 0:00:02]} Ba7 {[%emt 0:00:04]} 9. Ng3 {[%emt 0:00:01]} Be6 {[%emt 0:00:02]} 10. Bc2 {[%emt 0:00:02]} h6 {[%emt 0:00:03]} 11. O-O {[%emt 0:00:02]} d5 {[%emt 0:00:03]} 12. exd5 {[%emt 0:00:01]} Bxd5 {[%emt 0:00:07]} 13. h3 {[%emt 0:00:02]} Qd7 {[%emt 0:00:05]} 14. Re1 {[%emt 0:00:01]} Rfe8 {[%emt 0:00:01]} 15. b4 {[%emt 0:00:05]} Rad8 {[%emt 0:00:04]} 16. a4 {[%emt 0:00:02]} b5 {[%emt 0:00:14]} 17. Nh4 {[%emt 0:00:10]} Bb6 {[%emt 0:00:07]} 18. Nhf5 {[%emt 0:01:01]} Ne7 {[%emt 0:00:03]} 19. Rxe5 {[%emt 0:00:18]} Nxf5 {[%emt 0:00:02]} 20. Rxf5 {[%emt 0:00:00]} Qc6 {[%emt 0:00:05]} 21. Bd2 {[%emt 0:01:00]} Bxg2 {[%emt 0:00:14]} 22. Kh2 {[%emt 0:00:22]} Bd5 {[%emt 0:00:11]} 23. d4 {[%emt 0:00:02]} Re6 {[%emt 0:00:18]} 24. Qg1 {[%emt 0:00:03]} Kh8 {[%emt 0:00:41]} 25. Bd3 {[%emt 0:00:09]} Rde8 {[%emt 0:00:15]} 26. Re1 {[%emt 0:00:06]} Rxe1 {[%emt 0:00:03]} 27. Bxe1 {[%emt 0:00:00]} Re6 {[%emt 0:00:10]} 28. Bd2 {[%emt 0:00:01]} Qd7 {[%emt 0:00:03]} 29. Qc1 {[%emt 0:00:03]} Ne4 {[%emt 0:00:11]} 30. Rxd5 {[%emt 0:00:11]} Qxd5 {[%emt 0:00:05]} 31. Nxe4 {[%emt 0:00:06]} Rxe4 {[%emt 0:00:02]} 32. Bxe4 {[%emt 0:00:01]} Qxe4 {[%emt 0:00:02]} 33. Bf4 {[%emt 0:00:00]} c6 {[%emt 0:00:05]} 34. Be5 {[%emt 0:00:01]} Kh7 {[%emt 0:00:07]} 35. Qg1 {[%emt 0:00:03]} f6 {[%emt 0:00:07]} 36. Bg3 {[%emt 0:00:01]} Bd8 {[%emt 0:00:03]} 37. Qc1 {[%emt 0:00:04]} Be7 {[%emt 0:00:03]} 38. Qd2 {[%emt 0:00:02]} Bf8 {[%emt 0:00:03]} 39. Qc1 {[%emt 0:00:03]} g5 {[%emt 0:00:06]} 40. Qd2 {[%emt 0:00:01]} Kg6 {[%emt 0:00:02]} 41. Kg1 {[%emt 0:00:02]} h5 {[%emt 0:00:01]} 42. h4 {[%emt 0:00:02]} gxh4 {[%emt 0:00:03]} 43. Bf4 {[%emt 0:00:01]} h3 {[%emt 0:00:02]} 44. f3 {[%emt 0:00:05]} Qxf3 {[%emt 0:00:01]} 45. Kh2 {[%emt 0:00:01]} Qg2+ {[%emt 0:00:02]} 46. Qxg2+ {[%emt 0:00:01]} hxg2 {[%emt 0:00:01]} 0-1

[Event "RUS-ch Men Blitz 2019"]
[Site "Sochi"]
[Date "2019.10.17"]
[Round "9.6"]
[White "Rozum, Ivan"]
[Black "Tsydypov, Zhamsaran"]
[Result "1/2-1/2"]
[ECO "A05"]
[WhiteElo "2599"]
[BlackElo "2553"]
[Annotator "ChessBase"]
[PlyCount "71"]
[EventDate "2019.10.17"]
[EventType "swiss"]
[EventCountry "RUS"]
[SourceTitle "playchess.com"]
[Source "ChessBase"]
[SourceQuality "1"]
[TimeControl "180+2"]

1. Nf3 {[%emt 0:00:00]} Nf6 {[%emt 0:00:02]} 2. g3 {[%emt 0:00:00]} g6 {[%emt 0:00:02]} 3. b3 {[%emt 0:00:01]} Bg7 {[%emt 0:00:02]} 4. Bb2 {[%emt 0:00:01]} d6 {[%emt 0:00:01]} 5. d4 {[%emt 0:00:02]} O-O {[%emt 0:00:04]} 6. Bg2 {[%emt 0:00:01]} a6 {[%emt 0:00:13]} 7. a4 {[%emt 0:00:16]} c5 {[%emt 0:00:08]} 8. c4 {[%emt 0:00:14]} Nfd7 {[%emt 0:00:15]} 9. O-O {[%emt 0:00:05]} Nc6 {[%emt 0:00:07]} 10. e3 {[%emt 0:00:06]} cxd4 {[%emt 0:00:01]} 11. exd4 {[%emt 0:00:01]} e5 {[%emt 0:00:03]} 12. Na3 {[%emt 0:00:29]} e4 {[%emt 0:00:05]} 13. Nd2 {[%emt 0:00:13]} f5 {[%emt 0:00:04]} 14. Nc2 {[%emt 0:00:03]} Qb6 {[%emt 0:00:06]} 15. Rb1 {[%emt 0:00:16]} Nf6 {[%emt 0:00:39]} 16. Kh1 {[%emt 0:00:33]} Re8 {[%emt 0:00:38]} 17. Ba1 {[%emt 0:00:19]} d5 {[%emt 0:00:06]} 18. Ne3 {[%emt 0:00:09]} Be6 {[%emt 0:00:04]} 19. cxd5 {[%emt 0:00:02]} Nxd5 {[%emt 0:00:01]} 20. Ndc4 {[%emt 0:00:01]} Qa7 {[%emt 0:00:06]} 21. Nxd5 {[%emt 0:00:06]} Bxd5 {[%emt 0:00:02]} 22. Ne3 {[%emt 0:00:03]} Rad8 {[%emt 0:00:05]} 23. Nxd5 {[%emt 0:00:11]} Rxd5 {[%emt 0:00:01]} 24. Qc2 {[%emt 0:00:05]} Nxd4 {[%emt 0:00:06]} 25. Qc4 {[%emt 0:00:07]} Qc5 {[%emt 0:00:02]} 26. Bxd4 {[%emt 0:00:13]} Bxd4 {[%emt 0:00:04]} 27. Rfd1 {[%emt 0:00:05]} Red8 {[%emt 0:00:07]} 28. f3 {[%emt 0:00:02]} b5 {[%emt 0:00:28]} 29. axb5 {[%emt 0:00:04]} axb5 {[%emt 0:00:02]} 30. Qxc5 {[%emt 0:00:01]} Bxc5 {[%emt 0:00:04]} 31. Rxd5 {[%emt 0:00:01]} Rxd5 {[%emt 0:00:01]} 32. fxe4 {[%emt 0:00:01]} fxe4 {[%emt 0:00:03]} 33. Bxe4 {[%emt 0:00:01]} Re5 {[%emt 0:00:03]} 34. Bd3 {[%emt 0:00:01]} Be7 {[%emt 0:00:03]} 35. Kg2 {[%emt 0:00:03]} b4 {[%emt 0:00:01]} 36. Bc4+ {[%emt 0:00:01]} 1/2-1/2